bitfinex/quotes_ETHUSD_20260117
["timestamp","ask_amount","ask_price","bid_price","bid_amount"]
[1768659425068,3.22808924,3307.9,3307.8,0.001]
[1768659425258,3.22808924,3307.9,3307.5,0.00080192]
[1768659425450,3.22808924,3307.7,3307.0,0.499]
[1768659426049,3.22808924,3307.5,3307.0,0.499]
[1768659426689,3.22808924,3307.3,3306.7,0.00080216]
[1768659426862,0.499,3307.4,3306.0,1.89829247]
[1768659426863,3.22808924,3307.0,3306.0,1.89829247]
[1768659427179,3.72708924,3307.0,3305.9,3.02489418]
[1768659427374,3.22808924,3306.8,3305.9,3.02489418]
[1768659427943,3.22808924,3306.8,3305.8,0.49783835]
[1768659428175,0.00080869,3306.2,3305.8,0.49783835]
[1768659428481,0.00080869,3306.2,3305.8,3.52280523]
[1768659429385,0.00385869,3306.2,3305.8,3.02496688]
[1768659429880,0.00080951,3306.5,3305.8,3.02496688]
[1768659429881,0.00080951,3306.5,3305.9,1.96253398]
[1768659430082,0.00080951,3306.5,3305.9,1.99278292]
[1768659430275,0.00081057,3306.8,3306.1,1.96253406]
[1768659432357,3.22808924,3306.7,3306.1,3.02543969]
[1768659432683,3.22808924,3306.7,3306.1,0.00080959]
[1768659432684,3.55097922,3306.7,3306.1,0.00080959]
[1768659432908,3.55097922,3306.7,3306.1,3.02551846]
[1768659435281,3.22808924,3306.7,3306.1,0.00080959]
[1768659442603,3.32838957,3306.6,3306.1,0.00080959]
[1768659447111,3.32838957,3306.5,3306.1,0.00080959]
[1768659449497,3.32838957,3306.7,3306.1,2.35010676]
[1768659449690,3.82738957,3306.7,3306.1,2.35010676]
[1768659450188,6.85158074,3306.7,3306.4,0.001]
[1768659450416,3.32838957,3306.6,3306.4,0.001]
[1768659454441,3.32838957,3306.6,3306.1,0.00080959]
[1768659456125,0.28337024,3306.5,3306.1,0.00080959]
[1768659456325,3.43757476,3306.5,3306.1,0.00080959]
[1768659457138,0.28337031,3306.4,3306.1,0.00080959]
[1768659457428,3.43757476,3306.5,3306.1,0.00080959]
[1768659457634,3.72098444,3306.4,3306.1,0.00080959]
[1768659457841,3.43757476,3306.4,3306.1,0.00080959]
[1768659458944,3.43757476,3306.1,3305.7,0.001]
[1768659459242,3.43757476,3305.9,3305.7,0.001]
[1768659460024,3.43757476,3306.1,3305.7,0.001]
[1768659461540,3.43757476,3306.0,3305.7,0.001]
[1768659464382,3.43757476,3305.9,3305.7,0.001]
[1768659465267,3.78133224,3305.8,3305.4,0.00080771]
[1768659465587,3.43757476,3305.8,3305.4,0.00080771]
[1768659473585,3.43757476,3305.8,3305.7,0.001]
[1768659473753,3.43757476,3305.8,3305.4,0.00080771]
[1768659480195,0.00080877,3306.2,3305.6,2.78895741]
[1768659480401,0.00080877,3306.2,3305.4,0.00080771]
[1768659480402,0.499,3306.3,3305.8,7.18089617]
[1768659480694,0.499,3306.2,3305.9,2.80017594]
[1768659481201,0.499,3306.2,3305.8,0.00080885]
[1768659481998,3.99750556,3306.2,3305.8,0.00080885]
[1768659484497,3.49850556,3306.2,3305.8,0.00080885]
[1768659484895,3.49850556,3306.2,3305.8,3.26460792]
[1768659485505,0.002,3305.9,3305.8,3.26460792]
[1768659485795,0.002,3306.2,3305.8,6.2895921]
[1768659488704,3.49931515,3306.5,3305.9,2.88535538]
[1768659489016,0.28323901,3306.4,3306.0,3.95758865]
[1768659489182,3.99831515,3306.5,3306.2,2.88535538]
[1768659489183,0.00080959,3306.5,3306.2,2.88535538]
[1768659489911,0.00080959,3306.5,3306.1,7.28660135]
[1768659490912,0.00080959,3306.5,3306.1,10.31125209]
[1768659491814,0.00080959,3306.5,3306.1,5.92012218]
[1768659491978,0.00080959,3306.5,3306.2,0.69923555]
[1768659493915,3.49931515,3306.5,3306.2,0.69923555]
[1768659495807,3.49931515,3306.5,3306.0,7.05077042]
[1768659496010,3.49931515,3306.5,3306.0,4.09699805]
[1768659496210,3.49931515,3306.5,3306.1,3.02469382]
[1768659497083,3.49931515,3306.5,3306.0,7.0601174]
[1768659497922,0.002,3306.2,3306.0,7.0601174]
[1768659498223,3.50131515,3306.5,3306.1,0.70601174]
[1768659500617,3.50131515,3306.5,3306.1,3.73071941]
[1768659503033,3.50131515,3306.5,3306.1,0.70601174]
[1768659504526,3.50131515,3306.5,3306.2,3.04245125]
[1768659504527,0.00280959,3306.5,3306.2,3.04245125]
[1768659505040,0.00280959,3306.5,3306.2,6.06701973]
[1768659505196,0.00280959,3306.5,3306.3,0.67730315]
[1768659506602,3.76679651,3306.5,3306.3,0.67730315]
[1768659506800,3.76679651,3306.5,3306.1,3.73069618]
[1768659510403,0.002,3306.2,3306.1,3.73069618]
[1768659510603,3.76398692,3306.4,3306.1,3.73069618]
[1768659510813,3.76398692,3306.4,3306.1,0.70601174]
[1768659511037,3.76398692,3306.4,3306.0,4.09702297]
[1768659511340,3.76398692,3306.3,3305.8,0.00080885]
[1768659513507,3.92665559,3306.2,3305.8,0.00080885]
[1768659517208,6.95129097,3306.2,3305.8,0.00080885]
[1768659517410,3.92665559,3306.1,3305.8,0.00080885]
[1768659518109,3.92665559,3306.0,3305.4,3.02612746]
[1768659518854,3.92665559,3306.0,3305.4,0.00080771]
[1768659519711,3.92665559,3306.0,3305.4,3.02615488]
[1768659520232,3.92665559,3306.0,3305.4,0.00080771]
[1768659521949,3.92665559,3306.0,3305.7,0.001]
[1768659523865,4.62186724,3306.0,3305.7,0.001]
[1768659524344,3.92665559,3306.0,3305.7,0.001]
[1768659526235,3.92746444,3306.2,3305.7,3.20337393]
[1768659526439,4.42646444,3306.2,3305.7,3.20337393]
[1768659529051,0.00080885,3306.2,3305.8,3.21134509]
[1768659529224,3.92946518,3306.5,3306.0,3.21134509]
[1768659529225,4.42846518,3306.5,3306.0,3.21134509]
[1768659531440,4.42846518,3306.5,3306.1,3.2200422]
[1768659531441,0.00280959,3306.5,3306.1,3.2200422]
[1768659533557,0.00280959,3306.5,3306.1,3.2210422]
[1768659533859,0.002,3306.2,3306.1,3.2210422]
[1768659534037,0.00280959,3306.5,3306.1,3.87096383]
[1768659537562,0.00280959,3306.5,3306.1,6.89565641]
[1768659537740,0.00280959,3306.5,3306.2,3.2391314]
[1768659538561,0.00280959,3306.5,3306.1,0.65092163]
[1768659539158,0.00280959,3306.5,3306.1,3.89264631]
[1768659539674,0.00280959,3306.5,3306.2,1.13079049]
[1768659539873,0.00081057,3306.8,3306.2,1.13079049]
[1768659539874,4.54222271,3306.8,3306.2,7.39968256]
[1768659540048,0.28303726,3306.7,3306.2,7.39968256]
[1768659540249,3.52389411,3306.8,3306.2,7.39968256]
[1768659540451,4.3254747,3306.7,3306.3,0.74014922]
[1768659540662,4.04241214,3306.7,3306.3,0.74014922]
[1768659542047,4.04241214,3306.6,3306.1,0.00180967]
[1768659543953,4.04241214,3306.6,3305.8,3.02577412]
[1768659543954,4.54222181,3306.5,3305.8,0.00080893]
[1768659544156,4.04241214,3306.3,3305.8,0.00080893]
[1768659544359,0.49980967,3306.5,3305.4,3.25686663]
[1768659544360,4.04241214,3306.1,3305.4,0.00080771]
[1768659544550,4.54141214,3306.1,3305.4,0.00080771]
[1768659544881,4.54141214,3306.1,3305.6,3.02513353]
[1768659545254,4.54141214,3306.1,3305.5,6.28455452]
[1768659546254,4.54141214,3306.1,3305.5,3.02522381]
[1768659546586,4.54141214,3306.1,3305.6,3.26174373]
[1768659548506,4.54141214,3306.1,3305.6,6.28690243]
[1768659552308,4.54141214,3306.1,3305.6,3.0251587]
[1768659552503,4.54141214,3306.1,3305.4,0.00080771]
[1768659552504,4.04241214,3306.0,3305.4,0.00080771]
[1768659552669,4.04241214,3306.0,3305.4,3.02615138]
[1768659557302,4.04241214,3306.0,3305.4,6.31257991]
[1768659558196,4.04241214,3306.0,3305.4,9.33793236]
[1768659558404,4.04241214,3306.0,3305.7,0.001]
[1768659558772,0.002,3305.8,3305.7,0.001]
[1768659560581,0.00080893,3306.2,3305.8,3.29272774]
[1768659560803,4.04241214,3306.1,3305.7,0.001]
[1768659568304,7.06712988,3306.1,3305.7,0.001]
[1768659568486,4.10467379,3306.0,3305.7,0.001]
[1768659572391,0.002,3305.8,3305.7,0.001]
[1768659579404,3.97459991,3305.8,3305.7,0.001]
[1768659598478,3.97459991,3305.8,3305.4,3.02613653]
[1768659601141,0.002,3305.8,3305.5,3.36267353]
[1768659601365,0.002,3306.1,3305.5,4.05145454]
[1768659601570,0.28353158,3306.0,3305.5,4.05145454]
[1768659601779,3.8312697,3306.0,3305.5,4.05145454]
[1768659602452,3.8312697,3306.0,3305.4,0.00080771]
[1768659603063,4.11481243,3305.9,3305.4,0.00080771]
[1768659603230,3.8312697,3305.7,3305.4,0.00080771]
[1768659604567,3.02488028,3306.0,3305.4,3.36824515]
[1768659604870,0.28348851,3305.9,3305.4,3.36824515]
[1768659605166,3.8312697,3305.9,3305.4,3.36824515]
[1768659605769,3.8312697,3305.9,3305.4,6.39358493]
[1768659606569,0.002,3306.1,3305.5,3.36860016]
[1768659606570,6.85801273,3306.1,3305.5,3.36860016]
[1768659606738,0.28346141,3306.0,3305.5,3.36860016]
[1768659607066,0.28346141,3305.9,3305.5,3.36860016]
[1768659607271,3.8312697,3306.0,3305.5,6.39383665]
[1768659607430,0.28345559,3305.9,3305.5,6.39383665]
[1768659607635,3.8312697,3306.0,3305.5,6.39383665]
[1768659607844,0.28345553,3305.9,3305.5,6.39383665]
[1768659608174,3.8312697,3306.0,3305.5,6.39383665]
[1768659608474,0.28345406,3305.9,3305.8,0.001]
[1768659609176,0.28345114,3305.9,3305.8,0.001]
[1768659610169,4.11472084,3305.9,3305.8,0.001]
[1768659610975,0.28345114,3305.9,3305.8,3.37537542]
[1768659611178,0.002,3306.1,3305.8,3.37537542]
[1768659612389,3.8332697,3306.1,3305.8,0.001]
[1768659613180,0.002,3306.3,3305.9,3.37654801]
[1768659613365,0.00081057,3306.8,3306.4,3.37373834]
[1768659615306,0.00081057,3306.8,3306.5,3.37585589]
[1768659616566,0.00081057,3306.8,3306.5,6.40016123]
[1768659616763,0.00081057,3306.8,3306.6,3.37791841]
[1768659618268,0.00081057,3306.8,3306.5,0.94246706]
[1768659619085,0.00081057,3306.8,3306.5,3.96678799]
[1768659619805,0.00081057,3306.8,3306.5,0.94246706]
[1768659619984,0.002,3306.5,3306.3,0.499]
[1768659620183,0.002,3306.5,3306.2,3.02456233]
[1768659621064,0.002,3306.5,3306.1,3.88077076]
[1768659621065,3.8332697,3306.5,3306.1,3.52448722]
[1768659622716,3.8332697,3306.5,3306.1,0.49980975]
[1768659623077,3.8332697,3306.5,3306.1,0.00080975]
[1768659625508,0.002,3306.5,3306.1,3.38829221]
[1768659625814,0.002,3306.5,3306.2,3.38748246]
[1768659626114,0.002,3306.5,3306.1,3.38829221]
[1768659628382,0.002,3306.5,3306.1,6.41296108]
[1768659631016,4.07177594,3306.5,3306.1,3.02547862]
[1768659632025,4.07177594,3306.5,3306.4,0.001]
[1768659633314,4.07177594,3306.5,3306.1,0.00080975]
[1768659634795,0.002,3306.5,3306.1,3.39682244]
[1768659635111,0.002,3306.5,3306.1,4.34450855]
[1768659636618,0.002,3306.5,3306.1,6.42152497]
[1768659638523,3.83767086,3306.4,3306.1,0.00080975]
[1768659638704,3.83767086,3306.4,3305.8,0.00180901]
[1768659639222,4.33667086,3306.4,3305.8,0.00180901]
[1768659641990,4.33667086,3306.4,3305.5,3.025237]
[1768659641991,3.83847987,3306.2,3305.5,3.025237]
[1768659643125,3.83847987,3306.2,3305.5,6.05049792]
[1768659643320,3.83847987,3306.2,3305.5,3.025237]
[1768659643527,3.83847987,3306.2,3306.1,0.001]
[1768659643723,3.83767086,3306.1,3305.5,3.025237]
[1768659644837,3.83767086,3306.1,3305.4,9.45797259]
[1768659645530,3.83767086,3306.1,3305.4,9.45871572]
[1768659646218,3.83767086,3306.1,3305.4,6.05149631]
[1768659646419,3.83767086,3306.1,3305.6,3.0251694]
[1768659648030,0.00080901,3306.2,3305.6,3.0251694]
[1768659648031,3.83847987,3306.2,3305.7,3.40863198]
[1768659648328,0.00080901,3306.2,3305.9,3.40863198]
[1768659649034,3.83767086,3306.1,3305.8,3.02498638]
[1768659649228,3.83767086,3306.1,3305.4,3.02612125]
[1768659649732,3.83767086,3306.1,3305.5,3.02525387]
[1768659650242,3.83767086,3306.1,3305.4,6.8677111]
[1768659650532,3.83767086,3306.0,3305.4,6.8677111]
[1768659652649,3.83767086,3306.0,3305.4,0.00080771]
[1768659652839,3.83767086,3306.0,3304.9,0.001]
[1768659652840,4.02391519,3305.4,3304.9,0.001]
[1768659653420,4.02391519,3305.4,3304.9,0.5]
[1768659654152,4.02391519,3305.4,3304.9,0.001]
[1768659654457,0.40239152,3305.3,3304.9,4.32952237]
[1768659654622,4.02391519,3305.4,3304.9,7.35529533]
[1768659655356,4.02391519,3305.3,3304.9,0.001]
[1768659661061,4.02391519,3305.6,3304.9,3.94033462]
[1768659662576,4.02391519,3305.4,3304.9,3.94033462]
[1768659667179,4.02391519,3305.4,3305.2,0.001]
[1768659667478,4.7288328,3305.4,3305.2,0.001]
[1768659667976,7.75418815,3305.4,3305.2,0.001]
[1768659668283,4.02391519,3305.3,3305.2,0.001]
[1768659672981,4.7288328,3305.4,3305.2,0.001]
[1768659673355,4.02391519,3305.6,3305.2,3.94033462]
[1768659674286,7.04908625,3305.6,3305.2,3.94033462]
[1768659675172,7.04908625,3305.6,3305.2,0.001]
[1768659676952,4.02391519,3305.6,3305.2,0.001]
[1768659677454,4.72909751,3305.6,3305.2,0.001]
[1768659677655,7.7543023,3305.6,3305.2,0.001]
[1768659679263,0.002,3305.3,3305.2,0.001]
[1768659691678,0.002,3305.3,3305.2,4.09511889]
[1768659695515,0.002,3305.6,3305.3,4.28752084]
[1768659695711,0.002,3305.6,3305.3,4.78652084]
[1768659708526,0.002,3305.7,3305.4,4.28752084]
[1768659709708,0.002,3305.7,3305.4,7.31284368]
[1768659711024,0.002,3305.7,3305.5,4.28752084]
[1768659711582,0.002,3305.7,3305.5,7.31276579]
[1768659711788,0.002,3305.7,3305.5,8.17207375]
[1768659712615,0.002,3305.7,3305.5,3.88455291]
[1768659715059,0.002,3306.0,3305.7,4.05214612]
[1768659715739,4.17588634,3306.0,3305.5,7.93669903]
[1768659718030,4.17388634,3305.9,3305.5,4.91145408]
[1768659718436,4.17388634,3305.9,3305.5,7.93671386]
[1768659718745,4.17388634,3305.9,3305.5,3.88456774]
[1768659718920,4.17388634,3305.9,3305.5,4.38356774]
[1768659720162,4.17388634,3305.9,3305.5,3.88456774]
[1768659720312,0.002,3306.0,3305.6,4.89579829]
[1768659723320,4.17588634,3306.0,3305.6,4.89579829]
[1768659726861,0.002,3305.7,3305.5,0.499]
[1768659728063,0.002,3305.7,3305.5,3.52425802]
[1768659728561,0.002,3305.7,3305.5,3.02525802]
[1768659728741,0.002,3305.7,3305.5,3.52425802]
[1768659728941,4.17588634,3305.7,3305.4,0.00080779]
[1768659734964,4.17388634,3305.6,3305.4,0.00080779]
[1768659737536,4.17388634,3305.5,3305.4,0.00080779]
[1768659752684,7.19914726,3305.5,3305.4,0.00080779]
[1768659753781,4.17388634,3305.5,3305.4,0.00080779]
[1768659753989,4.22785966,3305.4,3305.2,0.001]
[1768659754946,7.25322805,3305.4,3305.2,0.001]
[1768659755583,3.02536839,3305.4,3305.2,0.001]
[1768659755877,4.22785966,3305.3,3305.2,0.001]
[1768659757283,3.02529545,3305.5,3305.2,0.001]
[1768659757284,7.25315511,3305.5,3305.2,0.001]
[1768659757461,8.2811807,3305.5,3305.2,0.001]
[1768659757657,4.22785966,3305.4,3305.2,0.001]
[1768659759085,3.02544398,3305.3,3305.2,0.001]
[1768659760703,7.25330364,3305.3,3305.2,0.001]
[1768659761677,4.22785966,3305.3,3305.2,0.001]
[1768659761888,5.05598555,3305.3,3305.2,0.001]
[1768659764086,1.02802559,3305.5,3305.2,4.33934422]
[1768659764291,3.0251694,3305.6,3305.2,4.33934422]
[1768659764502,7.25302906,3305.6,3305.2,4.33934422]
[1768659764731,7.25302906,3305.6,3305.2,0.001]
[1768659764881,4.22785966,3305.5,3305.2,0.001]
[1768659767818,7.25313404,3305.5,3305.2,0.001]
[1768659768012,3.02521013,3305.6,3305.2,4.33934422]
[1768659775031,7.49313453,3305.7,3305.2,4.33934422]
[1768659781337,4.16323268,3305.6,3305.2,4.33934422]
[1768659782146,3.02526092,3305.5,3305.2,4.33934422]
[1768659782515,7.1884936,3305.5,3305.2,0.001]
[1768659782723,4.16323268,3305.4,3305.2,0.001]
[1768659784041,4.0771066,3305.5,3305.2,0.001]
[1768659784222,0.002,3305.4,3305.2,0.001]
[1768659786940,4.16523268,3305.4,3305.2,0.001]
[1768659790044,0.002,3305.4,3305.2,0.001]
[1768659792314,3.02735245,3305.4,3305.2,0.001]
[1768659792545,3.02493433,3305.4,3305.2,0.001]
[1768659796547,3.02517618,3305.6,3305.2,0.001]
[1768659796548,3.02523837,3305.6,3305.2,4.17739508]
[1768659796748,3.02711285,3305.7,3305.3,4.59413459]
[1768659797048,0.002,3305.7,3305.3,4.17639508]
[1768659797217,4.16323268,3305.5,3304.9,0.001]
[1768659798653,4.16323268,3305.3,3304.9,0.001]
[1768659801751,7.6377421,3305.5,3304.9,4.58964583]
[1768659801950,5.111457,3305.6,3305.0,4.61890301]
[1768659802151,5.111457,3305.6,3305.0,4.58864583]
[1768659802661,8.13663446,3305.6,3305.0,4.58864583]
[1768659806736,5.111457,3305.6,3305.1,4.58864583]
[1768659806935,0.499,3305.6,3305.1,4.58864583]
[1768659807136,0.499,3305.6,3305.1,5.42633861]
[1768659807575,0.499,3305.6,3305.1,5.45659488]
[1768659808073,0.499,3305.6,3305.1,5.42633861]
[1768659808971,0.002,3305.3,3305.2,4.58864583]
[1768659809179,0.501,3305.6,3305.3,4.58864583]
[1768659810756,0.501,3305.6,3305.4,4.58864583]
[1768659811972,0.002,3305.6,3305.4,4.58864583]
[1768659813676,0.002,3305.6,3305.4,7.6139819]
[1768659813847,0.002,3305.6,3305.5,4.20720035]
[1768659818180,0.002,3305.7,3305.5,4.20720035]
[1768659819174,0.00080779,3305.8,3305.6,4.20720035]
[1768659819374,3.52581999,3306.0,3305.5,4.20720035]
[1768659821552,0.002,3305.6,3305.5,4.20720035]
[1768659821753,7.88912025,3306.0,3305.5,5.04841553]
[1768659822050,7.88912025,3306.0,3305.5,4.20720035]
[1768659824183,3.52581999,3306.0,3305.5,4.20720035]
[1768659824386,4.36330026,3305.7,3304.8,0.49980681]
[1768659824589,4.36330026,3305.7,3305.0,7.23291155]
[1768659824806,4.36330026,3305.7,3305.1,4.93059151]
[1768659828363,4.36330026,3305.7,3305.2,3.02553551]
[1768659828563,4.36330026,3305.7,3305.2,7.23273586]
[1768659831285,4.36330026,3305.7,3305.3,4.20720035]
[1768659832396,0.00080787,3305.8,3305.3,4.20720035]
[1768659833530,0.00080787,3305.8,3305.4,7.35193169]
[1768659833799,0.002,3305.5,3305.4,7.35193169]
[1768659834166,0.002,3305.5,3305.4,4.32657924]
[1768659834664,0.00280787,3305.8,3305.4,4.32657924]
[1768659835104,4.42479672,3305.7,3305.2,7.35208224]
[1768659835292,4.42479672,3305.7,3305.2,8.46219947]
[1768659836481,4.42479672,3305.7,3305.3,4.35683367]
[1768659837201,4.42760459,3305.8,3305.3,4.35683367]
[1768659837693,4.42760459,3305.8,3305.3,7.38226615]
[1768659837897,0.00280787,3305.8,3305.4,4.32657924]
[1768659838070,0.00280787,3305.8,3305.5,5.36432481]
[1768659838671,0.00280787,3305.8,3305.5,1.03774557]
[1768659839826,0.00280787,3305.8,3305.5,5.36432481]
[1768659840614,0.00280787,3305.8,3305.5,8.38955783]
[1768659841121,0.00280787,3305.8,3305.5,5.36432481]
[1768659841305,0.00280787,3305.8,3305.6,0.83896145]
[1768659844016,0.00280787,3305.8,3305.3,7.35200258]
[1768659844189,0.00280787,3305.8,3305.3,4.32657924]
[1768659844389,4.42479672,3305.7,3305.2,3.52449995]
[1768659845217,4.42479672,3305.7,3305.2,3.02549995]
[1768659845917,0.002,3305.5,3305.2,3.02549995]
[1768659846118,0.002,3305.5,3305.3,0.73520792]
[1768659848139,4.42679672,3305.5,3304.1,3.88]
[1768659848290,0.00080681,3305.2,3304.7,4.32657924]
[1768659848488,0.002,3305.5,3304.8,4.69113238]
[1768659848728,0.002,3305.5,3304.8,4.66087337]
[1768659849733,0.002,3305.5,3304.8,4.69113238]
[1768659850309,0.002,3305.5,3305.0,4.32657924]
[1768659850631,0.002,3305.5,3305.2,4.32657924]
[1768659852727,0.002,3305.5,3305.3,7.35202322]
[1768659854518,0.002,3305.5,3305.3,4.32657924]
[1768659855603,0.002,3305.5,3305.3,7.35196593]
[1768659856224,0.002,3305.5,3305.0,4.32657924]
[1768659856411,0.002,3305.5,3305.2,3.02548078]
[1768659856603,0.002,3305.5,3305.0,7.85129654]
[1768659856604,0.002,3305.5,3305.3,3.0254387]
[1768659857726,0.002,3305.5,3305.2,3.02553551]
[1768659858221,0.002,3305.5,3305.2,7.35211475]
[1768659860420,0.002,3305.5,3305.2,10.37765026]
[1768659860626,4.42479672,3305.7,3305.2,10.37765026]
[1768659860989,0.00280787,3305.8,3305.3,4.35683367]
[1768659861195,0.00280787,3305.8,3305.3,4.32657924]
[1768659861796,0.00280787,3305.8,3305.4,7.20445692]
[1768659864537,0.00280787,3305.8,3305.4,10.22980937]
[1768659865016,0.00280787,3305.8,3305.5,4.17910447]
[1768659865929,0.00280787,3305.8,3305.3,7.20448199]
[1768659865930,4.07491167,3305.8,3305.3,7.20448199]
[1768659866135,0.00280787,3305.8,3305.5,4.17910447]
[1768659866329,0.00280787,3305.8,3305.5,7.20435918]
[1768659866833,0.00280787,3305.8,3305.5,3.02525471]
[1768659868130,0.00280787,3305.8,3305.5,7.20435918]
[1768659868313,0.00280787,3305.8,3305.5,8.32962453]
[1768659874140,0.00280787,3305.8,3305.5,4.17910447]
[1768659874628,0.00280787,3305.8,3305.4,3.02531247]
[1768659874939,4.08326836,3305.8,3305.4,3.02531247]
[1768659880744,0.002,3305.5,3305.4,3.02531247]
[1768659880943,4.08326836,3305.8,3305.4,3.02531247]
[1768659889830,4.08326836,3305.8,3304.9,4.23185184]
[1768659889831,7.1083411,3305.8,3304.9,4.23185184]
[1768659890032,4.08046049,3305.7,3305.1,3.02562092]
[1768659890750,4.08046049,3305.7,3304.8,4.23265873]
[1768659891048,4.08046049,3305.7,3304.8,0.49980689]
[1768659891232,4.08046049,3305.7,3305.0,3.02571426]
[1768659892022,3.02512657,3305.7,3304.9,3.02581016]
[1768659892240,0.002,3305.5,3304.9,3.02581016]
[1768659892436,4.07449316,3305.4,3304.9,3.02581016]
[1768659896483,4.07449316,3305.4,3304.8,3.0266781]
[1768659896682,4.07449316,3305.2,3304.8,0.00080689]
[1768659897548,4.07449316,3305.2,3304.8,3.02669999]
[1768659898569,4.07449316,3305.2,3304.8,0.00080689]
[1768659900843,0.002,3305.5,3304.9,3.96779735]
[1768659901153,0.002,3305.5,3305.1,3.96779735]
[1768659903091,0.002,3305.5,3304.4,3.96779735]
[1768659903092,8.46693876,3305.0,3304.4,3.96779735]
[1768659903396,0.84669388,3304.9,3304.4,3.96779735]
[1768659903646,4.07449316,3305.1,3304.4,3.96779735]
[1768659903796,4.07449316,3305.1,3304.5,3.96779735]
[1768659905757,7.10017721,3305.1,3304.5,3.96779735]
[1768659906174,4.07449316,3305.0,3304.5,3.96779735]
[1768659906457,0.00080689,3305.2,3304.6,3.99805819]
[1768659906892,0.00080689,3305.2,3304.6,3.96779735]
[1768659907794,0.00080689,3305.2,3304.8,3.96779735]
[1768659909667,0.002,3305.5,3304.9,4.49705545]
[1768659909868,0.002,3305.5,3305.1,3.96779735]
[1768659910089,0.002,3305.5,3305.0,6.0514372]
[1768659910090,0.002,3305.5,3305.3,3.96779735]
[1768659911777,0.00280787,3305.8,3305.3,3.96779735]
[1768659912900,0.00280787,3305.8,3305.3,6.99323231]
[1768659914109,4.07730103,3305.8,3305.2,1.00192346]
[1768659914307,4.07730103,3305.8,3305.1,6.99335874]
[1768659914607,4.07730103,3305.8,3304.8,3.02669957]
[1768659914770,4.07730103,3305.8,3305.2,3.02553125]
[1768659914988,4.07730103,3305.8,3305.3,3.96779735]
[1768659915336,4.07730103,3305.8,3305.2,3.02553125]
[1768659915892,0.002,3305.5,3305.2,3.02553125]
[1768659916110,0.002,3305.5,3305.2,4.02743442]
[1768659917527,0.002,3305.5,3305.2,1.00190317]
[1768659919424,0.002,3305.5,3305.2,4.02742801]
[1768659923812,0.002,3305.5,3305.2,8.1007416]
[1768659925527,4.00526213,3305.5,3305.1,3.02562295]
[1768659926531,4.00526213,3305.5,3305.2,3.02551535]
[1768659926696,0.002,3305.5,3305.2,3.02551535]
[1768659927630,0.002,3305.5,3305.4,0.001]
[1768659931234,4.00526213,3305.5,3305.4,0.001]
[1768659931428,4.70830765,3305.5,3304.9,3.52477906]
[1768659931635,4.00526213,3305.5,3304.9,3.02577906]
[1768659932204,4.00526213,3305.5,3304.9,7.09909265]
[1768659933052,4.21183152,3305.4,3304.8,3.52568929]
[1768659933231,4.21183152,3305.4,3304.8,0.00080697]
[1768659934445,4.21183152,3305.3,3304.8,0.00080697]
[1768659937749,4.21183152,3305.3,3304.8,3.02670868]
[1768659939251,4.21183152,3305.3,3305.1,0.001]
[1768659939449,4.98565063,3305.3,3305.1,0.001]
[1768659946460,4.21183152,3305.2,3305.1,0.001]
[1768659947027,4.17920452,3305.2,3305.1,0.001]
[1768659948256,4.17920452,3305.2,3304.8,0.00080697]
[1768659951069,4.17920452,3305.2,3305.1,0.001]
[1768659951268,4.97704517,3305.2,3305.1,0.001]
[1768659958691,4.17920452,3305.2,3305.1,0.001]
[1768659960611,7.01403028,3305.4,3305.1,0.001]
[1768659961314,3.98863845,3305.3,3305.1,0.001]
[1768659963193,7.01408596,3305.3,3305.1,0.001]
[1768659963596,3.98863845,3305.2,3305.1,0.001]
[1768659964696,4.69004705,3305.2,3305.1,0.001]
[1768659965764,7.71558256,3305.2,3305.1,0.001]
[1768659972218,0.002,3305.5,3304.9,4.13231267]
[1768659972375,0.499,3305.7,3305.0,4.13231267]
[1768659974070,0.499,3305.7,3305.2,4.13231267]
[1768659975170,3.52409306,3305.7,3305.2,4.13231267]
[1768659981308,3.52409306,3305.7,3305.2,4.16256802]
[1768659982910,3.52409306,3305.7,3305.2,4.13231267]
[1768659985114,3.52409306,3305.7,3305.2,4.16256802]
[1768659985816,4.30826078,3305.6,3305.5,0.001]
[1768659986014,5.39428626,3305.6,3305.5,0.001]
[1768659986313,5.39428626,3305.6,3305.1,4.28279819]
[1768659986514,4.30826078,3305.6,3305.1,4.28279819]
[1768659988115,4.30826078,3305.4,3304.9,4.78179819]
[1768659988684,3.02526092,3305.5,3304.9,4.78179819]
[1768659989612,4.30826078,3305.4,3304.8,3.02666807]
[1768659989816,4.30826078,3305.4,3304.8,0.00080697]
[1768659989981,4.30826078,3305.3,3304.8,4.28360516]
[1768659990386,4.30826078,3305.3,3304.8,4.97014512]
[1768659991315,4.30826078,3305.3,3304.8,7.99603769]
[1768659992422,4.30826078,3305.3,3304.8,7.30949773]
[1768659994225,4.30826078,3305.3,3304.8,4.28360516]
[1768659994702,7.33370482,3305.3,3304.8,4.28360516]
[1768659996896,4.30826078,3305.3,3304.8,4.28360516]
[1768659997291,4.30826078,3305.3,3305.1,0.001]
[1768659997838,7.33370552,3305.3,3305.1,0.001]
[1768659998636,4.30826078,3305.3,3305.1,0.001]
[1768660001044,4.30826078,3305.3,3304.4,3.02620785]
[1768660001045,4.10351635,3305.1,3304.4,3.02620785]
[1768660001336,0.73336467,3305.2,3304.4,4.36577865]
[1768660001337,4.10351635,3304.9,3304.4,4.36577865]
[1768660004045,7.12934441,3304.9,3304.4,4.36577865]
[1768660005438,4.10351635,3304.8,3304.2,4.36577865]
[1768660007739,3.02582806,3304.9,3304.3,3.02635959]
[1768660007939,7.12934441,3304.9,3304.4,4.36577865]
[1768660009148,4.10351635,3304.9,3304.4,4.36577865]
[1768660009320,3.52473638,3305.0,3304.4,4.36577865]
[1768660009522,0.499,3305.0,3304.7,0.001]
[1768660009842,0.92488377,3305.0,3304.7,4.36677865]
[1768660010040,0.92488377,3305.0,3304.7,0.001]
[1768660010219,3.95061708,3305.0,3304.7,0.001]
[1768660011340,0.92488377,3305.0,3304.7,0.001]
[1768660011847,0.499,3305.0,3304.7,0.001]
[1768660012449,3.5247194,3305.0,3304.7,0.001]
[1768660013047,0.73417164,3305.2,3304.7,4.41978019]
[1768660013048,3.02635637,3305.2,3304.7,4.41978019]
[1768660021154,0.002,3304.9,3304.7,4.41978019]
[1768660025756,0.002,3304.9,3304.3,7.44510878]
[1768660025757,4.28748392,3304.9,3304.3,7.44510878]
[1768660025931,4.28548392,3304.8,3304.3,7.44510878]
[1768660026845,4.28548392,3304.8,3304.3,8.54217186]
[1768660028361,4.28548392,3304.8,3304.4,4.41878019]